[Event "5th Sharjah Masters 2022"]
[Site "Sharjah"]
[Date "2022.05.27"]
[Round "7.28"]
[White "Kadric, Denis"]
[Black "Nikolov, Momchil"]
[Result "1/2-1/2"]
[ECO "B43"]
[WhiteElo "2576"]
[BlackElo "2454"]
[Annotator "TA"]
[PlyCount "142"]
[EventDate "2022.05.21"]
[EventType "swiss"]
[EventCountry "UAE"]
[SourceTitle "playchess.com"]
[Source "ChessBase"]
[SourceQuality "1"]
[TimeControl "5400+30"]

{[%evp 14,142,18,12,14,0,10,9,13,0,0,0,2,0,0,0,0,0,0,0,0,0,0,-8,54,0,7,10,48,25,36,39,36,23,47,9,32,33,43,35,76,68,81,33,73,59,62,51,70,24,28,39,41,36,26,17,29,20,35,12,23,25,67,56,111,111,115,110,132,45,196,195,201,97,135,129,167,112,144,129,139,124,134,116,106,106,114,116,106,101,97,58,58,0,0,0,0,0,0,0,0,-42,-43,-50,0,0,75,0,0,0,0,-50,8,0,0,0,0,0,0,0,0,0,0,0,0,0,0,0,0,0,0]} 1. e4 {[%emt 0:00:03]} c5 {[%emt 0:00:07]} 2. Ne2 {[%emt 0:01:45]} e6 {[%emt 0:02:05]} 3. Nbc3 {[%emt 0:00:29]} a6 {[%emt 0:00:10]} 4. g3 {[%emt 0:00:18]} b5 {[%emt 0:00:26]} 5. d4 {[%emt 0:00:40]} cxd4 {[%emt 0:02:19]} 6. Nxd4 {[%emt 0:00:02]} Bb7 {[%emt 0:00:20]} 7. Bg2 {[%emt 0:00:21]} Nf6 {[%emt 0:01:22]} 8. a3 {[%emt 0:00:24][%cal Ba2a3,Ba3a4][%mdl 32]} d6 {[%emt 0:07:55] B43: Sicilian: Kan Variation: 5 Nc3.} 9. O-O {[%emt 0:00:55]} Nbd7 {[%emt 0:00:11]} 10. Re1 {[%emt 0:00:38][%cal Oe4e5]} Qc7 $1 {[%emt 0:02:10]} 11. a4 {[%emt 0:02:22]} b4 {[%emt 0:05:00]} 12. Na2 {[%emt 0:00:51]} Nc5 $1 {[%emt 0:04:17][%csl LRa4,LRe4] [#]} 13. c3 $146 {[%emt 0:07:32]} ({Predecessor:} 13. f3 e5 14. Nf5 a5 15. c4 h6 16. b3 g6 17. Ne3 h5 18. Nd5 Nxd5 19. cxd5 {0-1 (47) Simonian,H (2445)-Korneev,O (2598) Sareyn 2017}) 13... b3 {[%emt 0:18:11]} 14. Nxb3 {[%emt 0:02:18]} Ncxe4 {[%emt 0:00:58]} 15. a5 {[%emt 0:19:49]} Be7 {[%emt 0:02:05]} 16. Qd4 {[%emt 0:05:43][%cal Rg2e4]} d5 {[%emt 0:05:48]} 17. Bf4 {[%emt 0:00:20] Inhibits e5.} Qc8 {[%emt 0:04:57]} 18. Rac1 {[%emt 0:07:04]} Nc5 {[%emt 0:12:22]} (18... O-O $11) 19. Nd2 {[%emt 0:00:31]} (19. Nxc5 $14 Bxc5 20. Qd3) 19... O-O $11 {[%emt 0:02:21]} 20. b4 {[%emt 0:00:48]} Nce4 {[%emt 0:00:35]} (20... Nfe4 {with more complications.} 21. bxc5 Bxc5 22. Rxe4 Bxd4 23. Rxd4 Qd7) 21. c4 {[%emt 0:01:44] And now cxd5 would win.} Nxd2 {[%emt 0:01:22]} 22. Bxd2 {[%emt 0:01:37]} Qd7 {[%emt 0:01:55]} 23. Bf4 {[%emt 0:11:45][%cal Bd2f4,Bf4e5,Be5d4][%mdl 32]} Rfd8 {[%emt 0:01:17]} 24. Red1 {[%emt 0:01:16]} h6 {[%emt 0:01:47]} 25. Be5 {[%emt 0:03:25]} Rac8 {[%emt 0:02:58]} 26. Qb2 {[%emt 0:02:47]} Qa4 {[%emt 0:02:05]} 27. c5 {[%emt 0:09:44]} Qd7 {[%emt 0:00:27]} 28. Nc3 {[%emt 0:00:17]} (28. f4 $16) 28... Ne8 {[%emt 0:00:47]} 29. Bd4 {[%emt 0:00:58] White is much more active.} Bc6 {[%emt 0:01:50]} 30. Qe2 {[%emt 0:00:54]} Nc7 {[%emt 0:01:18]} 31. Qg4 {[%emt 0:01:58]} (31. Be5 $14) 31... f6 {[%emt 0:02:08]} 32. f4 {[%emt 0:02:40]} Rb8 {[%emt 0:00:24]} 33. Rb1 {[%emt 0:00:02]} Rb7 {[%emt 0:02:52]} 34. Rd2 {[%emt 0:08:41]} Rdb8 {[%emt 0:00:16]} 35. Rdb2 {[%emt 0:00:01]} Qe8 {[%emt 0:04:16][%cal Oe6e5]} 36. Qe2 {[%emt 0:02:34] Prevents e5.} Bf8 {[%emt 0:02:39]} 37. Qe3 {[%emt 0:01:03]} Kh8 {[%emt 0:01:59]} 38. Bf1 {[%emt 0:00:32]} Nb5 {[%emt 0:01:41]} (38... Qf7 $14) 39. Nxb5 $16 {[%emt 0:02:13]} Bxb5 {[%emt 0:00:03]} 40. Bh3 {[%emt 0:00:09]} Bd7 {[%emt 0:00:33]} 41. Qe2 {[%emt 0:00:51]} ({White should play} 41. Bc3 $16) 41... Rb5 $2 {[%emt 0:01:29]} (41... Bb5 $1 $14 42. Qe3 (42. Qxe6 $2 Re7 $19) 42... Re7) 42. Qe1 $18 {[%emt 0:01:09]} Qf7 {[%emt 0:02:21]} 43. Re2 {[%emt 0:00:15]} (43. Bf1 $18 {and White stays clearly on top.}) 43... Re8 {[%emt 0:00:58]} 44. Rb3 {[%emt 0:00:24]} Qh5 {[%emt 0:00:27]} 45. Bf1 {[%emt 0:01:31]} (45. Bxe6 $2 Rxe6 46. Ree3 (46. Rxe6 $2 Bxe6 47. Re3 Bf5 $19) 46... Rxe3 47. Rxe3 Qf5 $19) ({White should try} 45. g4 $1 $18 {[%cal Rg4h5]} Qg6 46. g5) 45... e5 {[%emt 0:00:20]} 46. fxe5 {[%emt 0:01:06]} fxe5 {[%emt 0:00:01] [#]} 47. Rbe3 $1 {[%emt 0:00:06]} ({But not} 47. Rxe5 $6 Rxe5 48. Qxe5 Qxe5 49. Bxe5 {[#]} Bxc5+ $1 50. Kg2 (50. bxc5 Rxb3 51. Bxa6 Kg8 $15) 50... Rxb4 $11) 47... e4 {[%emt 0:00:42]} 48. Rf2 {[%emt 0:00:02] Hoping for Qd2.} Qg6 {[%emt 0:00:48]} 49. Bxb5 {[%emt 0:01:27]} Bxb5 {[%emt 0:00:02]} 50. Rf4 {[%emt 0:00:22]} Be7 {[%emt 0:00:24][%cal Bf8e7,Be7d8,Bd8c7][%mdl 32]} 51. h4 {[%emt 0:00:39] Inhibits Bg5.} Bd8 {[%emt 0:00:58]} 52. Qf2 {[%emt 0:00:12][%cal Oh4h5] Black must now prevent h5!} Kg8 $1 {[%emt 0:00:42]} 53. Qg2 {[%emt 0:01:07]} ({Better is} 53. Qa2 $14 Qe6 54. Rf2) 53... Bc7 $11 {[%emt 0:00:21]} 54. Rf2 {[%emt 0:00:01]} Qg4 {[%emt 0:00:27] Prevents Qh3. aiming for ...Qd1+.} 55. Kh2 $1 {[%emt 0:01:04]} Bd7 {[%emt 0:00:44] This bishop pair is nice.} 56. c6 {[%emt 0:00:02]} Bc8 {[%emt 0:00:45]} 57. Rf4 {[%emt 0:00:51]} Bxf4 {[%emt 0:00:30]} 58. gxf4 {[%emt 0:00:01]} Qxh4+ {[%emt 0:00:36]} (58... Qxf4+ $15 59. Qg3 g5) 59. Kg1 {[%emt 0:00:03][%csl Gd4][%cal Rg2g7]} Bg4 {[%emt 0:00:22]} (59... Re7 $11) 60. c7 {[%emt 0:00:33]} (60. Qg3 $16 Qh5 61. b5 axb5 62. a6) 60... h5 {[%emt 0:00:28]} 61. Be5 {[%emt 0:00:53]} Kh7 {[%emt 0:00:30]} 62. Qf2 {[%emt 0:01:06]} (62. Rg3 $11) 62... Qe7 {[%emt 0:00:14]} (62... Qxf2+ $1 $15 63. Kxf2 g5) 63. Qb2 {[%emt 0:00:31] The position is equal.} Rc8 {[%emt 0:00:31]} 64. Qc3 {[%emt 0:00:30]} Bf3 {[%emt 0:00:37]} 65. Rxf3 {[%emt 0:00:06]} exf3 {[%emt 0:00:11]} 66. Qxf3 {[%emt 0:00:02][%mdl 4096] Endgame KQR-KQB} ({Much worse is} 66. Qd3+ g6 67. Qxf3 Qd7 $15) 66... Qf7 {[%emt 0:00:42]} 67. Qh3 {[%emt 0:00:38]} Qg6+ {[%emt 0:00:31]} 68. Kf2 {[%emt 0:00:04]} Qc2+ {[%emt 0:00:11]} 69. Ke1 {[%emt 0:00:56]} Qc1+ {[%emt 0:00:51]} 70. Ke2 {[%emt 0:00:25] Threatening mate with Qf5+.} Qc2+ {[%emt 0:00:18]} 71. Ke1 {[%emt 0:00:01] Really sharp!} Qc1+ {[%emt 0:01:43] Black defended with fortune.  Weighted Error Value: White=0.16 (very precise) /Black=0.15 (very precise)} 1/2-1/2

[Event "5th Sharjah Masters 2022"]
[Site "Sharjah"]
[Date "2022.05.27"]
[Round "7.29"]
[White "Vokhidov, Shamsiddin"]
[Black "Mastrovasilis, Athanasios"]
[Result "1-0"]
[ECO "C65"]
[WhiteElo "2536"]
[BlackElo "2540"]
[Annotator "TA"]
[PlyCount "61"]
[EventDate "2022.05.21"]
[EventType "swiss"]
[EventCountry "UAE"]
[SourceTitle "playchess.com"]
[Source "ChessBase"]
[SourceQuality "1"]
[TimeControl "5400+30"]

{[%evp 9,61,10,20,10,10,5,36,44,44,27,79,81,75,80,74,81,92,74,93,83,80,84,93,89,111,103,146,140,166,185,190,125,131,133,148,114,101,101,139,116,152,152,295,185,335,311,311,271,273,202,275,260,221,255]} 1. e4 {[%emt 0:00:04]} e5 {[%emt 0:00:21]} 2. Nf3 {[%emt 0:00:05]} Nc6 {[%emt 0:00:05]} 3. Bb5 {[%emt 0:00:03]} Nf6 {[%emt 0:00:16]} 4. d3 {[%emt 0:00:03]} Bc5 {[%emt 0:00:13]} 5. c3 {[%emt 0:00:07]} d5 {[%emt 0:00:38]} 6. Nbd2 {[%emt 0:00:08] C65: Ruy Lopez: Berlin Defence (3...Nf6), unusual lines and 4 0-0 Bc5.} O-O {[%emt 0:00:38]} 7. O-O {[%emt 0:00:04] [#]} a5 $146 {[%emt 0:11:23]} ({Predecessor:} 7... dxe4 8. dxe4 a5 9. Qe2 Qe7 10. a4 Na7 11. Bd3 Nc6 12. Nc4 Rd8 13. Be3 Bg4 {0-1 (57) Sevian,S (2703)-Vidit,S (2723) Chess.com INT 2022}) 8. Bxc6 {[%emt 0:19:58] White is slightly better.} bxc6 {[%emt 0:00:36]} 9. Nxe5 {[%emt 0:00:13]} Qe8 {[%emt 0:18:48]} (9... Re8 $11) 10. Nef3 $1 $16 {[%emt 0:08:31]} dxe4 {[%emt 0:12:31]} 11. Re1 $1 {[%emt 0:00:23]} e3 {[%emt 0:29:47] [#]} 12. fxe3 {[%emt 0:01:26]} Bf5 {[%emt 0:01:31]} (12... Bxe3+ $2 13. Kf1 Ba6 14. Nc4 Bxc4 15. Bxe3 $18) 13. Qe2 {[%emt 0:06:04]} Ba7 {[%emt 0:01:12]} 14. Kh1 {[%emt 0:06:38]} Ng4 {[%emt 0:01:02][%cal Of5d3] aiming for ...Bxd3!} 15. Nd4 {[%emt 0:00:16]} Qe5 {[%emt 0:03:14][%csl Gg4][%cal Re5h2] [#]} 16. Nf1 {[%emt 0:05:03] Pair of Knights!} Bd7 {[%emt 0:00:30]} 17. h3 {[%emt 0:01:59]} Nf6 {[%emt 0:03:38]} 18. Nf3 {[%emt 0:00:32]} Qh5 {[%emt 0:00:53]} 19. e4 {[%emt 0:01:11]} Rae8 {[%emt 0:02:38]} 20. Be3 {[%emt 0:03:55]} (20. Bf4 $18) 20... Bxe3 {[%emt 0:00:54]} 21. Qxe3 {[%emt 0:00:17]} Ng4 {[%emt 0:02:00]} 22. Qd2 {[%emt 0:00:32][%cal Oe4e5]} Ne5 {[%emt 0:00:35]} 23. Nxe5 {[%emt 0:01:36]} Rxe5 {[%emt 0:00:06]} 24. Qf4 {[%emt 0:01:14]} Rg5 {[%emt 0:01:55][%cal Od7h3]} 25. Re3 {[%emt 0:00:55]} (25. Qxc7 $2 Bxh3 26. Ng3 Qh4 $19) 25... f5 {[%emt 0:00:28]} (25... Qg6 $16) 26. Rg3 {[%emt 0:03:16]} ({Weaker is} 26. Qxc7 f4 27. Qxd7 fxe3 28. Nxe3 h6 $11) 26... Rg4 {[%emt 0:03:21]} (26... Rg6 {is a better defense.} 27. Qxc7 Be6 28. Qxc6 (28. Qxa5 Qe2 $18) 28... fxe4) 27. Qxc7 $18 {[%emt 0:00:07]} f4 {[%emt 0:02:10]} 28. Qxd7 {[%emt 0:00:25]} ({Don't do} 28. Rxg4 $6 Bxg4 29. Qxc6 f3 30. Qd5+ Qxd5 31. exd5 fxg2+ 32. Kxg2 Bf3+ 33. Kg3 Bxd5 $18) 28... Rxg3 {[%emt 0:00:09]} 29. Qe6+ {[%emt 0:00:06]} Kh8 {[%emt 0:00:17] ...Rg6 is the strong threat.} 30. Nxg3 {[%emt 0:00:11]} fxg3 {[%emt 0:00:04]} 31. Qd6 {[%emt 0:00:14] Weighted Error Value: White=0.14 (very precise) /Black=0.28 (precise)} 1-0

[Event "5th Sharjah Masters 2022"]
[Site "Sharjah"]
[Date "2022.05.27"]
[Round "7.30"]
[White "Mammadzada, Gunay"]
[Black "Suleymanli, Aydin"]
[Result "1/2-1/2"]
[ECO "C07"]
[WhiteElo "2454"]
[BlackElo "2537"]
[Annotator "TA"]
[PlyCount "72"]
[EventDate "2022.05.21"]
[EventType "swiss"]
[EventCountry "UAE"]
[SourceTitle "playchess.com"]
[Source "ChessBase"]
[SourceQuality "1"]
[TimeControl "5400+30"]

{[%evp 13,72,4,17,0,13,0,40,0,0,0,0,-43,-29,-52,-27,-21,0,0,59,61,64,58,61,68,114,112,122,116,141,137,137,134,149,57,39,0,0,0,0,0,0,0,0,5,18,0,21,0,0,0,0,0,0,0,0,0,0,0,0,0,0]} 1. e4 {[%emt 0:00:04]} e6 {[%emt 0:00:23]} 2. d4 {[%emt 0:00:07]} d5 {[%emt 0:00:04]} 3. Nd2 {[%emt 0:00:05]} c5 {[%emt 0:01:07]} 4. exd5 {[%emt 0:00:35]} Qxd5 {[%emt 0:00:12]} 5. dxc5 {[%emt 0:00:29]} Bxc5 {[%emt 0:00:51]} 6. Ngf3 {[%emt 0:01:44]} Nf6 {[%emt 0:00:52]} 7. Bc4 {[%emt 0:01:39]} Qh5 {[%emt 0:01:36]} 8. O-O {[%emt 0:01:26] C07: French Tarrasch: 3...c5, 4 Ngf3 and 4 exd5 Qxd5.} Nc6 {[%emt 0:02:39] [#]} 9. a3 $146 {[%emt 0:06:22]} ({Predecessor:} 9. Re1 O-O 10. h3 Rd8 11. Qe2 a6 12. c3 b5 13. Bb3 Bb7 14. Bc2 Ne7 15. Ne4 Nxe4 16. Bxe4 Bxe4 17. Qxe4 {0-1 (28) Katzir,M (2159)-Roshka,Y (2476) Chess.com INT 2020}) 9... a5 {[%emt 0:17:52]} 10. b3 {[%emt 0:13:06] White is slightly better.} b6 {[%emt 0:01:42]} 11. Bb2 {[%emt 0:01:16][%cal Ob3b4]} Bb7 {[%emt 0:00:41]} 12. Be2 {[%emt 0:14:34][%cal Ob3b4,Bc4e2,Be2d3,Bd3e4][%mdl 32]} Rd8 {[%emt 0:04:28]} 13. Qe1 {[%emt 0:08:31][%cal Of3e5]} Qh6 {[%emt 0:12:08]} 14. Bd3 {[%emt 0:02:23]} Nd5 {[%emt 0:06:29]} 15. Ne4 {[%emt 0:01:23]} Nf4 {[%emt 0:02:09]} ({Black should play} 15... Be7 $11) 16. Nxc5 $14 {[%emt 0:03:26]} bxc5 {[%emt 0:00:06]} 17. Be4 {[%emt 0:05:16] Ne5 is the strong threat. This bishop pair is nice.} f5 {[%emt 0:00:16]} 18. Bxf5 $1 {[%emt 0:02:44]} Nd4 {[%emt 0:10:22]} (18... Nxg2 $1 $14 {deserves consideration.} 19. Qxe6+ (19. Kxg2 $2 Nd4 $19) 19... Qxe6 20. Bxe6 Rd6) 19. Nxd4 $16 {[%emt 0:03:21]} cxd4 {[%emt 0:01:41]} 20. Be4 {[%emt 0:02:49]} ({Avoid the trap} 20. Qxa5 $2 Qg5 21. Qb5+ Rd7 22. Qxb7 Rxb7 $19) 20... Ba6 {[%emt 0:00:12] [#]} 21. Qxa5 $1 {[%emt 0:00:54]} Bxf1 {[%emt 0:00:18]} 22. Bc6+ {[%emt 0:01:11]} (22. Rxf1 $6 O-O 23. g3 Nh3+ 24. Kh1 e5 $16) 22... Kf7 {[%emt 0:01:31][%cal Of1g2] [#] Threatens to win with ...Bxg2!} 23. Rxf1 {[%emt 0:01:57]} (23. Qa7+ $1 $16 Kg8 24. Rxf1) 23... Rhf8 $1 $14 {[%emt 0:00:26]} 24. g3 {[%emt 0:06:16]} (24. Qe5 $5 {[%cal Rg2g3]}) 24... Qg6 $1 {[%emt 0:07:57] The position is equal.} 25. Qe5 {[%emt 0:09:18] Inhibits Ne2+.} Nh3+ {[%emt 0:06:32]} 26. Kg2 {[%emt 0:00:01]} Qxc2 {[%emt 0:02:34]} 27. Bxd4 {[%emt 0:00:25][%csl Gd4][%cal Re5g7] The board is on fire.} Qxc6+ {[%emt 0:00:28]} 28. Kxh3 {[%emt 0:00:02]} Rd5 {[%emt 0:08:30]} ({Don't do} 28... Qd5 29. Qxg7+ Ke8 30. Be3 $14) 29. Qxg7+ {[%emt 0:00:13]} Ke8 {[%emt 0:00:03]} 30. Be5 {[%emt 0:03:55]} (30. Qg4 $5 {[%cal Rf1c1]} Rff5 31. f3 $14) 30... Qc2 {[%emt 0:02:19] aiming for ...Qe2.} 31. Bf4 {[%emt 0:06:22] Strongly threatening Rc1.} Qe4 {[%emt 0:02:25]} 32. Qg4 {[%emt 0:01:19] Prevents Rh5+.} Rff5 {[%emt 0:02:52]} 33. Qg8+ $1 {[%emt 0:00:09]} Rf8 {[%emt 0:00:19]} 34. Qg4 {[%emt 0:00:04] Against Rh5+} Rff5 {[%emt 0:01:29] ( -> ...Rh5+)} 35. Qg8+ $1 {[%emt 0:00:33]} Rf8 {[%emt 0:00:10]} 36. Qg4 {[%emt 0:00:05] Against Rh5+} Rff5 {[%emt 0:00:24] Weighted Error Value: White=0.11 (very precise) /Black=0.10 (very precise)} 1/2-1/2

[Event "5th Sharjah Masters 2022"]
[Site "Sharjah"]
[Date "2022.05.27"]
[Round "7.31"]
[White "Dimakiling, Oliver"]
[Black "Ivic, Velimir"]
[Result "1-0"]
[ECO "A28"]
[WhiteElo "2420"]
[BlackElo "2623"]
[Annotator "TA"]
[PlyCount "107"]
[EventDate "2022.05.21"]
[EventType "swiss"]
[EventCountry "UAE"]
[SourceTitle "playchess.com"]
[Source "ChessBase"]
[SourceQuality "1"]
[TimeControl "5400+30"]

{[%evp 13,107,19,8,0,2,-17,-18,-7,-4,0,2,12,11,0,6,0,0,-13,0,0,8,8,22,4,25,34,24,27,31,-37,-22,-37,0,0,-14,-12,0,0,0,0,0,-21,24,16,18,0,0,0,0,0,6,18,190,149,160,163,261,264,328,310,258,218,351,316,660,527,520,375,643,553,554,525,525,524,612,554,681,535,972,908,2204,764,754,703,868,477,676,411,731,726,713,643,29986,29987,29988,29989]} 1. c4 {[%emt 0:00:03]} Nf6 {[%emt 0:00:25]} 2. Nc3 {[%emt 0:00:10]} e5 {[%emt 0:00:26]} 3. Nf3 {[%emt 0:00:20]} Nc6 {[%emt 0:00:06]} 4. e3 {[%emt 0:00:17]} Bb4 {[%emt 0:01:11]} 5. Qc2 {[%emt 0:00:12]} Bxc3 {[%emt 0:00:19]} 6. Qxc3 {[%emt 0:00:10]} Qe7 {[%emt 0:00:06]} 7. Be2 {[%emt 0:01:01]} O-O {[%emt 0:05:42]} 8. O-O {[%emt 0:00:28] A28: English Opening: Four Knights Variation.} d5 {[%emt 0:00:52][%cal Od5d4]} 9. cxd5 {[%emt 0:00:29]} Nxd5 {[%emt 0:00:06]} 10. Qb3 {[%emt 0:00:18] The position is equal.} Nb6 {[%emt 0:01:03]} 11. d3 {[%emt 0:00:13]} Be6 {[%emt 0:02:24]} 12. Qc2 {[%emt 0:00:10]} a5 {[%emt 0:03:10]} 13. Bd2 {[%emt 0:01:09] [#]} f6 $146 {[%emt 0:03:29]} ({Predecessor:} 13... Rfd8 14. Bc3 Bf5 15. e4 Bg4 16. Rac1 Nd7 17. Ne1 Bxe2 18. Qxe2 Nc5 19. f4 exf4 20. Rxf4 {0-1 (48) Thorfinnsson,B (2427)-Kjartansson,G (2466) Reykjavik 2020}) 14. Rfc1 {[%emt 0:02:01]} Rfd8 {[%emt 0:06:08]} 15. e4 {[%emt 0:03:30]} Qf7 {[%emt 0:04:12]} 16. b3 {[%emt 0:00:27]} Rd7 {[%emt 0:04:25]} 17. Be3 {[%emt 0:01:41]} Rad8 {[%emt 0:01:44]} 18. Qb2 {[%emt 0:04:05]} Nc8 {[%emt 0:11:38] [#]} 19. Rxc6 $1 {[%emt 0:01:40]} bxc6 {[%emt 0:00:04]} 20. Qc3 {[%emt 0:00:05]} Ne7 {[%emt 0:06:48]} 21. d4 {[%emt 0:00:47]} (21. Qxa5 $14 Kh8 22. Qc3) 21... exd4 {[%emt 0:02:02]} 22. Nxd4 {[%emt 0:00:06]} Kh8 {[%emt 0:00:20]} 23. h3 {[%emt 0:02:47]} f5 {[%emt 0:03:17]} 24. exf5 {[%emt 0:00:33]} Bxf5 {[%emt 0:00:59][%cal Be6f5,Bf5e4,Be4d5][%mdl 32]} 25. Nxc6 {[%emt 0:02:50]} Nxc6 {[%emt 0:03:10]} 26. Qxc6 {[%emt 0:00:05]} Rd6 {[%emt 0:01:28]} 27. Qc3 {[%emt 0:00:32]} Be4 {[%emt 0:05:08]} (27... Rg6 $5 {[%cal Rf5h3]} 28. Kh2 Qd5 $11) 28. Qxa5 {[%emt 0:03:58]} Rg6 {[%emt 0:01:34]} 29. Bg4 {[%emt 0:00:14]} Bd5 {[%emt 0:11:29][%cal Oh7h5]} 30. Rc1 $1 {[%emt 0:06:33]} h5 {[%emt 0:01:51]} 31. Rxc7 {[%emt 0:01:50]} Qe8 {[%emt 0:06:12]} 32. Rc5 {[%emt 0:00:38]} Rgd6 $2 {[%emt 0:05:20] Loses the game.} (32... hxg4 $11 33. Rxd5 Rxd5 34. Qxd5 gxh3) 33. Be2 {[%emt 0:01:27]} Qg6 {[%emt 0:01:15][%csl Gd5][%cal Rg6g2]} 34. Bf1 {[%emt 0:01:27]} Ra8 {[%emt 0:02:26]} (34... Kg8 $142 35. Bd4 Qf5) 35. Qb5 $18 {[%emt 0:02:48]} (35. Rxd5 $2 Rxa5 36. Rxa5 Rd1 $19) 35... Qe4 {[%emt 0:01:13]} 36. a4 {[%emt 0:01:30]} Rad8 {[%emt 0:00:40]} 37. Qe2 {[%emt 0:03:15] Threatens to win with a5.} Qg6 {[%emt 0:01:52]} (37... Bxb3 {keeps fighting.} 38. Rxh5+ (38. Qxh5+ Kg8 $18) 38... Kg8) 38. b4 {[%emt 0:01:15]} Rf8 $2 {[%emt 0:00:37]} (38... Bf7 39. Rc1 Qe4) 39. Kh2 {[%emt 0:02:56]} Qf5 {[%emt 0:00:55]} 40. Qb2 {[%emt 0:00:50]} Qd7 $2 {[%emt 0:02:21]} (40... Qe4 41. Qd4 (41. Rc7 Rg6 $17) 41... Qxd4 42. Bxd4 Bf7) 41. Qe5 {[%emt 0:02:17]} Rf5 {[%emt 0:00:47] [#]} 42. Rc8+ $3 {[%emt 0:01:05][%mdl 512]} Qxc8 {[%emt 0:00:07]} 43. Qxd6 {[%emt 0:00:05]} Qc2 {[%emt 0:00:51]} 44. Bd4 {[%emt 0:02:02] White wants to mate with Qh6+.} Qd2 {[%emt 0:00:51] Against Qh6+} 45. Qd7 {[%emt 0:06:17][%csl Gd4,LRf5,LRg7][%cal Rd7g7]} Qf4+ {[%emt 0:00:52]} 46. g3 {[%emt 0:04:04][%csl Gd4][%cal Rd7g7,Bg2g3,Bg3h4,Bh4h5][%mdl 32]} Qg5 {[%emt 0:00:02]} 47. Bxg7+ {[%emt 0:03:30]} Kg8 {[%emt 0:00:08] [#]} 48. Bd4 $1 {[%emt 0:00:13]} ({Not} 48. f4 $2 Rxf4 49. Qe8+ Kxg7 $19) 48... h4 {[%emt 0:00:36]} 49. Qc8+ {[%emt 0:05:01]} Kf7 {[%emt 0:01:05]} (49... Rf8 $142 50. Qc7 Rf7 51. gxh4 Qxh4 52. Qg3+ Qxg3+ 53. Kxg3 Rc7) 50. Qc7+ {[%emt 0:00:17]} Kg8 {[%emt 0:00:12]} (50... Ke6 $142 51. Qc8+ Kf7 52. Qd7+ Kg8 53. gxh4 Qg6 54. Qd8+ Kf7 55. Qc7+ Kg8 56. Qd8+ Kf7) 51. gxh4 {[%emt 0:02:43]} Qh6 {[%emt 0:01:20]} 52. Qd8+ {[%emt 0:00:59]} Kf7 {[%emt 0:00:40] ...Qf4+ is the strong threat.} 53. Qd7+ {[%emt 0:00:06]} Kg6 {[%emt 0:00:04]} 54. h5+ {[%emt 0:00:22] Weighted Error Value: White=0.40/Black=0.64} 1-0